fUST/lending_fUST_20250103
["ID","MTS","AMOUNT","RATE_DAILY","PERIOD"]
[347505949,1735889446900,-500.0,0.00019726,3]
[347505950,1735889446909,-420.60541796,0.00019726,3]
[347505952,1735889446921,-79.39458204,0.00019726,3]
[347505954,1735889446931,-500.0,0.00019726,3]
[347505956,1735889446940,-567.77469788,0.00019726,3]
[347506480,1735889517574,-789.614,0.0001874,2]
[347506481,1735889517599,-500.0,0.00019178,2]
[347506482,1735889517623,-500.0,0.00019178,2]
[347506483,1735889517647,-689.16,0.00019178,2]
[347506484,1735889517673,-160.48,0.00019178,2]
[347506485,1735889517696,-1335.14,0.00019178,2]
[347506486,1735889517719,-500.0,0.00019178,2]
[347506487,1735889517742,-500.0,0.00019178,2]
[347506488,1735889517765,-151.0,0.00019178,2]
[347506489,1735889517787,-151.0,0.00019178,2]
[347506490,1735889517811,-151.0,0.00019178,2]
[347506491,1735889517835,-151.0,0.00019178,2]
[347506492,1735889517858,-151.0,0.00019178,2]
[347506493,1735889517881,-500.0,0.00019178,2]
[347506494,1735889517905,-151.0,0.00019178,2]
[347506495,1735889517928,-190.500003,0.00019178,2]
[347506496,1735889517951,-18960.05,0.00019178,2]
[347506497,1735889517974,-500.055997,0.00019178,2]
[347506500,1735889732483,500.0,0.00025,120]
[347506501,1735889752046,190.53928266,0.0001,2]
[347506502,1735889754317,345.545474,0.00013973,2]
[347506508,1735889878039,-330.866111,0.00018268,2]
[347506509,1735889878063,-500.0,0.0001907,2]
[347506510,1735889878086,-1975.69148524,0.00019078,2]
[347506511,1735889878109,-300.0,0.00019177,2]
[347506512,1735889878134,-500.0,0.00019178,2]
[347506513,1735889878157,-338.14327349,0.00019178,2]
[347506514,1735889878181,-629.46140735,0.00019178,2]
[347506515,1735889878205,-500.0,0.00019178,2]
[347506516,1735889878228,-621.87475686,0.00019178,2]
[347506517,1735889878250,-506.63747627,0.00019178,2]
[347506518,1735889878273,-500.0,0.00019178,2]
[347506519,1735889878295,-500.0,0.00019178,2]
[347506520,1735889878318,-500.0,0.00019178,2]
[347506521,1735889878340,-502.41305177,0.00019178,2]
[347506522,1735889878363,-500.0,0.00019178,2]
[347506523,1735889878385,-500.0,0.00019178,2]
[347506524,1735889878407,-556.86898624,0.00019178,2]
[347506525,1735889878428,-269.77640778,0.00019178,2]
[347506526,1735889878451,-500.0,0.00019178,2]
[347506527,1735889878473,-500.0,0.00019178,2]
[347506528,1735889878495,-388.02550735,0.00019178,2]
[347506529,1735889878653,-500.0,0.00019178,2]
[347506530,1735889878678,-500.0,0.00019178,2]
[347506531,1735889878701,-508.92375146,0.00019178,2]
[347506532,1735889878725,-506.92359743,0.00019178,2]
[347506533,1735889878747,-500.0,0.00019178,2]
[347506534,1735889878769,-500.0,0.00019178,2]
[347506535,1735889878793,-225.920562,0.00019178,2]
[347506536,1735889878816,-225.920562,0.00019178,2]
[347506537,1735889878840,-503.16129953,0.00019178,2]
[347506538,1735889878863,-225.920562,0.00019178,2]
[347506539,1735889878886,-225.920562,0.00019178,2]
[347506540,1735889878908,-225.920562,0.00019178,2]
[347506541,1735889878930,-500.0,0.00019178,2]
[347506542,1735889878953,-225.920562,0.00019178,2]
[347506543,1735889878976,-225.920562,0.00019178,2]
[347506544,1735889878998,-225.920562,0.00019178,2]
[347506545,1735889879022,-225.920562,0.00019178,2]
[347506546,1735889879044,-225.920562,0.00019178,2]
[347506547,1735889879069,-225.920562,0.00019178,2]
[347506548,1735889879091,-225.920562,0.00019178,2]
[347506549,1735889879114,-225.920562,0.00019178,2]
[347506550,1735889879143,-225.920562,0.00019178,2]
[347506551,1735889879167,-225.920562,0.00019178,2]
[347506552,1735889879189,-225.920562,0.00019178,2]
[347506553,1735889879214,-225.920562,0.00019178,2]
[347506554,1735889879236,-225.920562,0.00019178,2]
[347506555,1735889879259,-225.920562,0.00019178,2]
[347506556,1735889879282,-500.0,0.00019178,2]
[347506557,1735889879305,-225.920556,0.00019178,2]
[347506558,1735889879329,-500.0,0.00019178,2]
[347506559,1735889879351,-152.119931,0.00019178,2]
[347506560,1735889879373,-500.0,0.00019178,2]
[347506561,1735889879396,-500.99369359,0.00019178,2]
[347506562,1735889879418,-500.0,0.00019178,2]
[347506563,1735889879450,-500.0,0.00019178,2]
[347506564,1735889879479,-500.0,0.00019178,2]
[347506565,1735889879503,-500.0,0.00019178,2]
[347506566,1735889879527,-501.36708381,0.00019178,2]
[347506567,1735889879551,-675.12,0.00019178,2]
[347506568,1735889879574,-521.48,0.00019178,2]
[347506569,1735889879598,-500.0,0.00019178,2]
[347506570,1735889879621,-615.27,0.00019178,2]
[347506571,1735889879644,-561.74,0.00019178,2]
[347506572,1735889879667,-500.0,0.00019178,2]
[347506573,1735889879690,-500.0,0.00019178,2]
[347506574,1735889879714,-500.0,0.00019178,2]
[347506575,1735889879738,-500.0,0.00019178,2]
[347506576,1735889879761,-502.05147233,0.00019178,2]
[347506577,1735889879784,-500.0,0.00019178,2]
[347506578,1735889879808,-455.79020431,0.00019178,2]
[347506579,1735889879830,-505.44182264,0.00019178,2]
[347506580,1735889879854,-660.44,0.00019178,2]
[347506581,1735889879878,-500.0,0.00019178,2]
[347506582,1735889879902,-500.0,0.00019178,2]
[347506583,1735889879926,-500.0,0.00019178,2]
[347506584,1735889879949,-500.0,0.00019178,2]
[347506585,1735889879973,-500.0,0.00019178,2]
[347506586,1735889879996,-500.0,0.00019178,2]
[347506587,1735889880020,-500.0,0.00019178,2]
[347506588,1735889880044,-500.0,0.00019178,2]
[347506589,1735889880067,-410.42914935,0.00019178,2]
[347506590,1735889880092,-1279.51,0.00019178,2]
[347506591,1735889880116,-500.0,0.00019178,2]
[347506592,1735889880143,-500.0,0.00019178,2]
[347506593,1735889880168,-500.0,0.00019178,2]
[347506594,1735889880192,-500.0,0.00019178,2]
[347506595,1735889880219,-500.0,0.00019178,2]
[347506596,1735889880244,-500.0,0.00019178,2]
[347506597,1735889880269,-528.61696023,0.00019178,2]
[347506598,1735889880293,-500.0,0.00019178,2]
[347506599,1735889880317,-574.57,0.00019178,2]
[347506600,1735889880340,-500.0,0.00019178,2]
[347506601,1735889880363,-500.0,0.00019178,2]
[347506602,1735889880386,-500.0,0.00019178,2]
[347506603,1735889880409,-502.53435157,0.00019178,2]
[347506604,1735889880431,-500.0,0.00019178,2]
[347506605,1735889880455,-500.0,0.00019178,2]
[347506606,1735889880480,-500.0,0.00019178,2]
[347506607,1735889880505,-501.0021488,0.00019178,2]
[347506608,1735889880532,-500.0,0.00019178,2]
[347506609,1735889880555,-500.0,0.00019178,2]
[347506610,1735889880578,-500.0,0.00019178,2]
[347506611,1735889880604,-500.0,0.00019178,2]
[347506612,1735889880627,-500.0,0.00019178,2]
[347506613,1735889880650,-500.0,0.00019178,2]
[347506614,1735889880674,-602.64,0.00019178,2]
[347506615,1735889880697,-515.00695296,0.00019178,2]
[347506616,1735889880722,-307.47121911,0.00019178,2]
[347506617,1735889880744,-500.0,0.00019178,2]
[347506618,1735889880766,-742.33,0.00019178,2]
[347506619,1735889880789,-478.5965589,0.00019178,2]
[347506620,1735889880811,-503.30953039,0.00019178,2]
[347506621,1735889880832,-500.0,0.00019178,2]
[347506622,1735889880855,-500.0,0.00019178,2]
[347506623,1735889880878,-871.11,0.00019178,2]
[347506624,1735889880900,-503.82277232,0.00019178,2]
[347506625,1735889880922,-501.50089109,0.00019178,2]
[347506626,1735889880947,-242.97170076,0.00019178,2]
[347506627,1735889880972,-1815.61,0.00019178,2]
[347506628,1735889880996,-714.35,0.00019178,2]
[347506629,1735889881018,-18170.04,0.00019178,2]
[347506630,1735889881040,-500.0,0.00019178,2]
[347506631,1735889881063,-500.0,0.00019178,2]
[347506632,1735889881086,-500.0,0.00019178,2]
[347506633,1735889881108,-801.43,0.00019178,2]
[347506634,1735889881133,-500.0,0.00019178,2]
[347506635,1735889881157,-3801.6,0.00019178,2]
[347506636,1735889881180,-500.0,0.00019178,2]
[347506637,1735889881203,-554.62128295,0.00019178,2]
[347506638,1735889881228,-5525.09,0.00019178,2]
[347506639,1735889881252,-2576.97,0.00019178,2]
[347506640,1735889881274,-500.0,0.00019178,2]
[347506641,1735889881296,-500.0,0.00019178,2]
[347506642,1735889881318,-500.0,0.00019178,2]
[347506643,1735889881340,-437.51910112,0.00019178,2]
[347506644,1735889881362,-500.0,0.00019178,2]
[347506645,1735889881384,-500.0,0.00019178,2]
[347506646,1735889881406,-500.0,0.00019178,2]
[347506647,1735889881430,-790.18,0.00019178,2]
[347506648,1735889881453,-500.0,0.00019178,2]
[347506649,1735889881475,-502.49106974,0.00019178,2]
[347506650,1735889881498,-501.53,0.00019178,2]
[347506651,1735889881521,-500.0,0.00019178,2]
[347506652,1735889881544,-500.0,0.00019178,2]
[347506653,1735889881567,-500.0,0.00019178,2]
[347506654,1735889881590,-500.0,0.00019178,2]
[347506655,1735889881614,-613.26,0.00019178,2]
[347506656,1735889881637,-500.0,0.00019178,2]
[347506657,1735889881659,-500.0,0.00019178,2]
[347506658,1735889881682,-504.15894221,0.00019178,2]
[347506659,1735889881703,-511.50053532,0.00019178,2]
[347506660,1735889881727,-500.0,0.00019178,2]
[347506661,1735889881749,-500.0,0.00019178,2]
[347506662,1735889881772,-500.0,0.00019178,2]
[347506663,1735889881795,-500.0,0.00019178,2]
[347506664,1735889881818,-1466.69,0.00019178,2]
[347506665,1735889881841,-767.14,0.00019178,2]
[347506666,1735889881864,-500.0,0.00019178,2]
[347506667,1735889881888,-983.64,0.00019178,2]
[347506668,1735889881912,-1425.36,0.00019178,2]
[347506669,1735889881935,-500.0,0.00019178,2]
[347506670,1735889881959,-500.0,0.00019178,2]
[347506671,1735889881982,-500.0,0.00019178,2]
[347506672,1735889882006,-509.00885708,0.00019178,2]
[347506673,1735889882028,-500.0,0.00019178,2]
[347506674,1735889882051,-609.65,0.00019178,2]
[347506675,1735889882075,-257.34240376,0.00019178,2]
[347506679,1735890007958,352.8,0.00025,120]
[347506680,1735890012110,722.20820164,0.00025,120]
[347506703,1735890378285,-3753.7926741,0.00018228,2]
[347506704,1735890378310,-756.522,0.0001874,2]
[347506705,1735890378335,-227.05,0.00019177,2]
[347506706,1735890378360,-300.0,0.00019177,2]
[347506707,1735890378383,-242.65759624,0.00019178,2]
[347506708,1735890378407,-500.0,0.00019178,2]
[347506709,1735890378431,-500.0,0.00019178,2]
[347506710,1735890378455,-500.0,0.00019178,2]
[347506711,1735890378478,-501.0962417,0.00019178,2]
[347506712,1735890378501,-500.0,0.00019178,2]
[347506713,1735890378525,-500.0,0.00019178,2]
[347506714,1735890378548,-500.0,0.00019178,2]
[347506715,1735890378572,-500.0,0.00019178,2]
[347506716,1735890378596,-500.0,0.00019178,2]
[347506717,1735890378621,-500.0,0.00019178,2]
[347506718,1735890378645,-500.0,0.00019178,2]
[347506719,1735890378668,-500.0,0.00019178,2]
[347506720,1735890378691,-500.0,0.00019178,2]
[347506721,1735890378714,-500.0,0.00019178,2]
[347506722,1735890378736,-500.77699858,0.00019178,2]
[347506723,1735890378759,-500.0,0.00019178,2]
[347506724,1735890378782,-500.0,0.00019178,2]
[347506725,1735890378805,-500.0,0.00019178,2]
[347506726,1735890378828,-500.0,0.00019178,2]
[347506727,1735890378852,-202.218145,0.00019178,2]
[347506728,1735890378875,-500.0,0.00019178,2]
[347506729,1735890378899,-500.0,0.00019178,2]
[347506730,1735890378922,-538.97350948,0.00019178,2]
[347506731,1735890378945,-410.18443262,0.00019178,2]
[347506732,1735890378968,-500.59485911,0.00019178,2]
[347506733,1735890378991,-540.98910105,0.00019178,2]
[347506734,1735890379014,-496.07589986,0.00019178,2]
[347506735,1735890379036,-526.0447553,0.00019178,2]
[347506736,1735890379059,-518.5959948,0.00019178,2]
[347506737,1735890379082,-524.96,0.00019178,2]
[347506738,1735890379105,-500.0,0.00019178,2]
[347506739,1735890379130,-500.0,0.00019178,2]
[347506740,1735890379153,-500.0,0.00019178,2]
[347506741,1735890379177,-500.0,0.00019178,2]
[347506742,1735890379201,-500.0,0.00019178,2]
[347506743,1735890379226,-561.65,0.00019178,2]
[347506744,1735890379251,-500.0,0.00019178,2]
[347506745,1735890379278,-437.10988807,0.00019178,2]
[347506746,1735890379303,-500.0,0.00019178,2]
[347506747,1735890379476,-198.41498124,0.00019178,2]
[347506748,1735890379500,-500.0,0.00019178,2]
[347506749,1735890379522,-500.0,0.00019178,2]
[347506750,1735890379546,-5294.88,0.00019178,2]
[347506751,1735890379569,-500.0,0.00019178,2]
[347506752,1735890379592,-502.76898773,0.00019178,2]
[347506753,1735890379615,-500.0,0.00019178,2]
[347506754,1735890379639,-500.0,0.00019178,2]
[347506755,1735890379660,-500.0,0.00019178,2]
[347506756,1735890379682,-500.0,0.00019178,2]
[347506757,1735890379704,-500.0,0.00019178,2]
[347506758,1735890379727,-500.0,0.00019178,2]
[347506759,1735890379750,-508.50004942,0.00019178,2]
[347506760,1735890379772,-500.0,0.00019178,2]
[347506761,1735890379795,-500.0,0.00019178,2]
[347506762,1735890379817,-500.0,0.00019178,2]
[347506763,1735890379840,-500.0,0.00019178,2]
[347506764,1735890379863,-500.0,0.00019178,2]
[347506765,1735890379887,-500.0,0.00019178,2]
[347506766,1735890379910,-500.0,0.00019178,2]
[347506767,1735890379933,-942.66,0.00019178,2]
[347506768,1735890379956,-500.0,0.00019178,2]
[347506769,1735890379980,-500.0,0.00019178,2]
[347506770,1735890380004,-2522.62,0.00019178,2]
[347506771,1735890380027,-515.3931518,0.00019178,2]
[347506772,1735890380050,-632.92,0.00019178,2]
[347506773,1735890380073,-516.87839201,0.00019178,2]
[347506774,1735890380097,-715.28,0.00019178,2]
[347506775,1735890380120,-536.26511803,0.00019178,2]
[347506776,1735890380144,-577.53,0.00019178,2]
[347506777,1735890380168,-500.0,0.00019178,2]
[347506778,1735890380192,-500.0,0.00019178,2]
[347506779,1735890380215,-17412.96,0.00019178,2]
[347506780,1735890380238,-505.23924103,0.00019178,2]
[347506781,1735890380264,-711.4,0.00019178,2]
[347506782,1735890380288,-834.81,0.00019178,2]
[347506783,1735890380312,-500.0,0.00019178,2]
[347506784,1735890380336,-684.59,0.00019178,2]
[347506785,1735890380360,-500.0,0.00019178,2]
[347506786,1735890380385,-1443.32,0.00019178,2]
[347506787,1735890380408,-768.04,0.00019178,2]
[347506788,1735890380431,-563.99,0.00019178,2]
[347506789,1735890380454,-500.0,0.00019178,2]
[347506790,1735890380479,-500.0,0.00019178,2]
[347506791,1735890380503,-500.0,0.00019178,2]
[347506792,1735890380527,-500.0,0.00019178,2]
[347506793,1735890380550,-500.0,0.00019178,2]
[347506794,1735890380573,-500.0,0.00019178,2]
[347506795,1735890380597,-500.0,0.00019178,2]
[347506796,1735890380623,-500.0,0.00019178,2]
[347506797,1735890380646,-500.0,0.00019178,2]
[347506798,1735890380670,-500.0,0.00019178,2]
[347506799,1735890380694,-500.0,0.00019178,2]
[347506800,1735890380717,-500.0,0.00019178,2]
[347506801,1735890380740,-3643.2,0.00019178,2]
[347506802,1735890380763,-500.0,0.00019178,2]
[347506803,1735890380785,-507.90671495,0.00019178,2]
[347506804,1735890380807,-500.0,0.00019178,2]
[347506805,1735890380828,-500.0,0.00019178,2]
[347506806,1735890380850,-117.09316814,0.00019178,2]
[347506815,1735890477199,-174.52605538,0.00019092,2]
[347506816,1735890477224,-382.90683186,0.00019178,2]
[347506817,1735890477249,-500.0,0.00019178,2]
[347506818,1735890477273,-500.0,0.00019178,2]
[347506819,1735890477299,-501.034134,0.00019178,2]
[347506820,1735890477325,-1405.58,0.00019178,2]
[347506821,1735890477349,-526.61120078,0.00019178,2]
[347506822,1735890477373,-502.06250746,0.00019178,2]
[347506823,1735890477397,-606.27,0.00019178,2]
[347506824,1735890477420,-500.0,0.00019178,2]
[347506825,1735890477442,-500.0,0.00019178,2]
[347506826,1735890477667,-719.17,0.00019178,2]
[347506827,1735890477690,-500.0,0.00019178,2]
[347506828,1735890477713,-16687.42,0.00019178,2]
[347506829,1735890477735,-757.25,0.00019178,2]
[347506830,1735890477757,-500.0,0.00019178,2]
[347506831,1735890477779,-500.0,0.00019178,2]
[347506832,1735890477801,-500.0,0.00019178,2]
[347506833,1735890477823,-500.0,0.00019178,2]
[347506834,1735890477844,-500.0,0.00019178,2]
[347506835,1735890477866,-500.0,0.00019178,2]
[347506836,1735890477887,-500.0,0.00019178,2]
[347506837,1735890477908,-1178.54,0.00019192,3]
[347506838,1735890477930,-500.0,0.00019192,3]
[347506839,1735890477951,-500.0,0.00019192,3]
[347506840,1735890477973,-500.0,0.00019192,3]
[347506841,1735890477994,-501.06647852,0.00019192,3]
[347506842,1735890478015,-500.0,0.00019192,3]
[347506843,1735890478037,-500.0,0.00019192,3]
[347506844,1735890478160,-500.0,0.00019192,3]
[347506845,1735890478182,-1739.96,0.00019192,3]
[347506846,1735890478205,-2469.59,0.00019192,3]
[347506847,1735890478227,-500.0,0.00019192,3]
[347506848,1735890478249,-646.99,0.00019192,3]
[347506849,1735890478271,-550.63,0.00019192,3]
[347506850,1735890478293,-500.0,0.00019192,3]
[347506851,1735890478320,-1365.97,0.00019192,3]
[347506852,1735890478342,-757.63,0.00019192,3]
[347506853,1735890478363,-538.34,0.00019192,3]
[347506854,1735890478385,-606.55,0.00019192,3]
[347506855,1735890478406,-500.0,0.00019192,3]
[347506856,1735890478428,-1196.39,0.00019192,3]
[347506857,1735890478451,-553.47,0.00019192,3]
[347506858,1735890478473,-681.75,0.00019192,3]
[347506859,1735890478494,-500.0,0.00019192,3]
[347506860,1735890478516,-800.03,0.00019192,3]
[347506861,1735890478537,-500.0,0.00019192,3]
[347506862,1735890478558,-735.18,0.00019192,3]
[347506863,1735890478580,-10579.55317666,0.00019241,2]
[347506864,1735890478601,-501.13278867,0.00019299,2]
[347506865,1735890478623,-185.80495885,0.00019365,2]
[347506866,1735890478644,-618.0,0.000194,2]
[347506867,1735890478665,-500.0,0.00019452,3]
[347506868,1735890478688,-500.0,0.00019452,3]
[347506869,1735890478711,-178.40138934,0.00019452,3]
[347506870,1735890478732,-500.0,0.00019452,3]
[347506871,1735890478754,-283.23,0.00019452,3]
[347506872,1735890478775,-609.65,0.00019452,3]
[347506873,1735890478796,-500.0,0.00019452,3]
[347506874,1735890478817,-500.0,0.00019452,3]
[347506875,1735890478837,-500.0,0.00019452,3]
[347506876,1735890478858,-500.0,0.00019452,3]
[347506877,1735890478879,-500.0,0.00019452,3]
[347506878,1735890478900,-500.0,0.00019452,3]
[347506879,1735890478921,-500.0,0.00019452,2]
[347506880,1735890478942,-5294.88,0.00019452,3]
[347506881,1735890478963,-543.3884,0.00019452,3]
[347506882,1735890478985,-500.0,0.00019452,3]
[347506883,1735890479006,-264.85,0.00019452,3]
[347506884,1735890479027,-942.66,0.00019452,3]
[347506885,1735890479049,-2522.62,0.00019452,3]
[347506886,1735890479070,-500.0,0.00019452,3]
[347506887,1735890479091,-684.59,0.00019452,3]
[347506888,1735890479113,-377.22,0.00019452,3]
[347506889,1735890479134,-768.04,0.00019452,3]
[347506890,1735890479156,-1443.32,0.00019452,3]
[347506891,1735890479178,-563.99,0.00019452,3]
[347506892,1735890479200,-500.0,0.00019452,3]
[347506893,1735890479223,-500.0,0.00019452,3]
[347506894,1735890479245,-500.0,0.00019452,3]
[347506895,1735890479268,-500.0,0.00019452,3]
[347506896,1735890479291,-500.0,0.00019452,3]
[347506897,1735890479316,-500.0,0.00019452,3]
[347506898,1735890479338,-500.0,0.00019452,3]
[347506899,1735890479360,-500.0,0.00019452,3]
[347506900,1735890479381,-500.0,0.00019452,3]
[347506901,1735890479403,-500.0,0.00019452,3]
[347506902,1735890479424,-500.0,0.00019452,3]
[347506903,1735890479446,-3643.2,0.00019452,3]
[347506904,1735890479468,-548.25403784,0.00019452,3]
[347506905,1735890479490,-1405.58,0.00019452,3]
[347506906,1735890479511,-606.27,0.00019452,3]
[347506907,1735890479532,-500.0,0.00019452,3]
[347506908,1735890479553,-500.0,0.00019452,3]
[347506909,1735890479575,-719.17,0.00019452,3]
[347506910,1735890479597,-16687.42,0.00019452,3]
[347506911,1735890479619,-757.25,0.00019452,3]
[347506912,1735890479641,-500.0,0.00019452,3]
[347506913,1735890479665,-500.0,0.00019452,3]
[347506914,1735890479686,-500.0,0.00019452,3]
[347506915,1735890479708,-500.0,0.00019452,3]
[347506916,1735890479730,-500.0,0.00019452,3]
[347506917,1735890479753,-488.79,0.00019452,3]
[347506918,1735890479775,-500.0,0.00019452,3]
[347506919,1735890479797,-500.0,0.00019452,3]
[347506920,1735890479819,-1178.54,0.00019466,3]
[347506921,1735890479841,-500.0,0.00019466,3]
[347506922,1735890479862,-500.0,0.00019466,3]
[347506923,1735890479884,-1739.96,0.00019466,3]
[347506924,1735890479906,-2469.59,0.00019466,3]
[347506925,1735890479928,-646.99,0.00019466,3]
[347506926,1735890479950,-550.63,0.00019466,3]
[347506927,1735890479972,-500.0,0.00019466,3]
[347506928,1735890479995,-1365.97,0.00019466,3]
[347506929,1735890480018,-757.63,0.00019466,3]
[347506930,1735890480041,-538.34,0.00019466,3]
[347506931,1735890480064,-606.55,0.00019466,3]
[347506932,1735890480087,-643.91440509,0.00019466,3]
[347506933,1735890480110,-1196.39,0.00019466,3]
[347506934,1735890480133,-553.47,0.00019466,3]
[347506935,1735890480158,-681.75,0.00019466,3]
[347506936,1735890480182,-268.09363555,0.00019466,3]
[347506943,1735890502636,217.2,0.00014,10]
[347506951,1735890632841,-300.0,0.00019176,2]
[347506952,1735890632851,-4922.58110069,0.00019176,2]
[347507271,1735890648007,-185.80495884,0.00019078,2]
[347507272,1735890648016,-500.0,0.00019175,2]
[347507273,1735890648026,-561.95920337,0.00019175,2]
[347507274,1735890648035,-455.1057332,0.00019175,2]
[347507275,1735890648044,-500.0,0.00019175,2]
[347507276,1735890648053,-500.0,0.00019175,2]
[347507277,1735890648063,-189.13752448,0.00019175,2]
[347507278,1735890648072,-391.36324833,0.00019175,2]
[347507279,1735890648081,-500.0,0.00019175,2]
[347507280,1735890648090,-500.0,0.00019175,2]
[347507281,1735890648100,-500.0,0.00019175,2]
[347507282,1735890648110,-500.0,0.00019175,2]
[347507283,1735890648119,-500.0,0.00019175,2]
[347507284,1735890648129,-500.0,0.00019175,2]
[347507285,1735890648138,-500.0,0.00019175,2]
[347507286,1735890648147,-500.0,0.00019175,2]
[347507287,1735890648157,-500.0,0.00019175,2]
[347507288,1735890648167,-500.0,0.00019175,2]
[347507289,1735890648177,-560.84346648,0.00019175,2]
[347507290,1735890648186,-500.0,0.00019175,2]
[347507291,1735890648196,-500.0,0.00019175,2]
[347507292,1735890648205,-500.0,0.00019175,2]
[347507293,1735890648214,-486.89586488,0.00019175,2]
[347507294,1735890648224,-500.0,0.00019175,2]
[347507295,1735890648234,-166.35101714,0.00019175,2]
[347507296,1735890648243,-300.0,0.00019175,2]
[347507297,1735890648253,-500.0,0.00019175,2]
[347507298,1735890648263,-500.0,0.00019175,2]
[347507299,1735890648272,-500.0,0.00019175,2]
[347507300,1735890648282,-500.0,0.00019175,2]
[347507301,1735890648291,-500.0,0.00019175,2]
[347507302,1735890648300,-500.0,0.00019175,2]
[347507303,1735890648310,-178.53238493,0.00019175,2]
[347507304,1735890648319,-500.0,0.00019175,2]
[347507305,1735890648328,-500.0,0.00019175,2]
[347507306,1735890648338,-500.0,0.00019175,2]
[347507307,1735890648347,-500.0,0.00019175,2]
[347507308,1735890648357,-500.0,0.00019175,2]
[347507309,1735890648367,-500.0,0.00019175,2]
[347507310,1735890648376,-500.0,0.00019175,2]
[347507311,1735890648386,-174.13717193,0.00019175,2]
[347507312,1735890648398,-500.0,0.00019175,2]
[347507313,1735890648407,-500.0,0.00019175,2]
[347507314,1735890648417,-500.0,0.00019175,2]
[347507315,1735890648426,-500.0,0.00019175,2]
[347507316,1735890648438,-500.0,0.00019175,2]
[347507317,1735890648447,-500.0,0.00019175,2]
[347507318,1735890648457,-500.0,0.00019175,2]
[347507319,1735890648466,-500.0,0.00019175,2]
[347507320,1735890648476,-500.0,0.00019175,2]
[347507321,1735890648486,-500.0,0.00019175,2]
[347507322,1735890648495,-500.0,0.00019175,2]
[347507323,1735890648504,-500.0,0.00019175,2]
[347507324,1735890648514,-203.83253135,0.00019175,2]
[347507325,1735890648523,-500.0,0.00019175,2]
[347507326,1735890648532,-500.0,0.00019175,2]
[347507327,1735890648542,-500.0,0.00019175,2]
[347507328,1735890648552,-500.0,0.00019175,2]
[347507329,1735890648561,-500.0,0.00019175,2]
[347507330,1735890648571,-500.0,0.00019175,2]
[347507331,1735890648581,-500.0,0.00019175,2]
[347507332,1735890648590,-500.0,0.00019175,2]
[347507333,1735890648600,-500.0,0.00019175,2]
[347507334,1735890648610,-500.0,0.00019175,2]
[347507335,1735890648619,-500.0,0.00019175,2]
[347507336,1735890648629,-292645.3069633,0.00019176,2]
[347507337,1735890648726,-1720.23456025,0.00019176,2]
[347507338,1735890648758,-268593.87737576,0.00019176,2]
[347507339,1735890648767,-500.0,0.00019178,2]
[347507340,1735890648777,-434.23857086,0.00019178,2]
[347507341,1735890649520,-500.0,0.00019175,2]
[347507342,1735890649531,-65.76142914,0.00019178,2]
[347507343,1735890649542,-143.3533524,0.00019178,2]
[347507351,1735890952455,340.939194,0.00013973,2]
[347507392,1735891831923,-165.433055,0.00016123,2]